fUST/lending_fUST_20240912
["ID","MTS","AMOUNT","RATE_DAILY","PERIOD"]
[337798168,1726123846436,-500.0,0.0001863,2]
[337798169,1726123846446,-500.0,0.0001863,2]
[337798170,1726123846458,-877.77,0.0001863,2]
[337798171,1726123846467,-500.0,0.0001863,2]
[337798172,1726123846476,-561.4,0.0001863,2]
[337798173,1726123846486,-602.7,0.0001863,2]
[337798174,1726123846496,-515.82,0.0001863,2]
[337798175,1726123846506,-1000.0,0.00018637,2]
[337798176,1726123846516,-365.65858561,0.00018641,2]
[337798177,1726123846526,-1000.0,0.00018642,2]
[337798178,1726123846536,-1000.0,0.00018642,2]
[337798179,1726123846546,-368.91137236,0.00018642,2]
[337798180,1726123846556,-1000.0,0.00018642,2]
[337798181,1726123846565,-1000.0,0.00018678,2]
[337798182,1726123846575,-963.29144678,0.00018699,2]
[337798183,1726123846585,-1000.0,0.00018704,2]
[337798184,1726123846594,-1000.0,0.00018706,2]
[337798185,1726123846604,-1000.0,0.00018728,2]
[337798186,1726123846613,-1000.0,0.00018747,2]
[337798187,1726123846622,-1000.0,0.00018768,2]
[337798188,1726123846633,-1000.0,0.00018792,2]
[337798189,1726123846643,-1000.0,0.00018831,2]
[337798190,1726123846652,-1000.0,0.00018868,2]
[337798191,1726123846662,-1000.0,0.0001887,2]
[337798192,1726123846671,-1000.0,0.00018896,2]
[337798193,1726123846681,-1000.0,0.00018901,2]
[337798194,1726123846692,-151.0,0.00018904,2]
[337798195,1726123846701,-151.0,0.00018904,2]
[337798196,1726123846711,-151.0,0.00018904,2]
[337798197,1726123846721,-534.8,0.00018904,2]
[337798198,1726123846730,-500.0,0.00018904,2]
[337798199,1726123846740,-909.14,0.00018904,2]
[337798200,1726123846749,-637.82,0.00018904,2]
[337798201,1726123846759,-500.0,0.00018904,2]
[337798202,1726123846768,-500.0,0.00018904,2]
[337798203,1726123846777,-1548.21,0.00018904,2]
[337798204,1726123846787,-960.5,0.00018904,2]
[337798205,1726123846796,-608.64,0.00018904,2]
[337798206,1726123846806,-500.0,0.00018904,2]
[337798207,1726123846816,-500.0,0.00018904,2]
[337798208,1726123846827,-688.31,0.00018904,2]
[337798209,1726123846837,-500.0,0.00018904,2]
[337798210,1726123846846,-500.0,0.00018904,2]
[337798211,1726123846855,-843.58,0.00018904,2]
[337798212,1726123846865,-500.0,0.00018904,2]
[337798213,1726123846875,-500.0,0.00018904,2]
[337798214,1726123846884,-500.0,0.00018904,2]
[337798215,1726123847058,-500.0,0.00018904,2]
[337798216,1726123847071,-453.85015164,0.00018904,2]
[337798217,1726123847080,-500.0,0.00018904,2]
[337798218,1726123847090,-500.0,0.00018904,2]
[337798219,1726123847099,-506.79,0.00018904,2]
[337798220,1726123847109,-500.0,0.00018904,2]
[337798221,1726123847118,-500.0,0.00018904,2]
[337798222,1726123847127,-500.0,0.00018904,2]
[337798223,1726123847137,-705.14,0.00018904,2]
[337798224,1726123847146,-761.85,0.00018904,2]
[337798225,1726123847156,-844.39,0.00018904,2]
[337798226,1726123847166,-1153.8,0.00018904,2]
[337798227,1726123847175,-1280.53,0.00018904,2]
[337798228,1726123847184,-563.5,0.00018904,2]
[337798229,1726123847194,-651.504644,0.00018904,2]
[337798230,1726123847203,-1201.71,0.00018904,2]
[337798231,1726123847212,-651.504644,0.00018904,2]
[337798232,1726123847221,-509.77,0.00018904,2]
[337798233,1726123847231,-500.0,0.00018904,2]
[337798234,1726123847240,-659.94,0.00018904,2]
[337798235,1726123847249,-500.0,0.00018904,2]
[337798236,1726123847258,-500.0,0.00018904,2]
[337798237,1726123847268,-151.0,0.00018904,2]
[337798238,1726123847278,-500.0,0.00018904,2]
[337798239,1726123847287,-151.0,0.00018904,2]
[337798240,1726123847296,-500.0,0.00018904,2]
[337798241,1726123847305,-500.0,0.00018904,2]
[337798242,1726123847314,-563.24,0.00018904,2]
[337798243,1726123847323,-1009.51,0.00018904,2]
[337798244,1726123847333,-151.0,0.00018904,2]
[337798245,1726123847343,-1316.2,0.00018904,2]
[337798246,1726123847353,-166.32335,0.00018904,2]
[337798247,1726123847362,-1002.22,0.00018904,2]
[337798248,1726123847373,-1498.5,0.00018904,2]
[337798249,1726123847384,-500.0,0.00018904,2]
[337798250,1726123847394,-694.31,0.00018904,2]
[337798251,1726123847405,-1214.16,0.00018904,2]
[337798252,1726123847414,-557.62,0.00018904,2]
[337798253,1726123847424,-540.42,0.00018904,2]
[337798254,1726123847434,-151.0,0.00018904,2]
[337798255,1726123847447,-1797.38,0.00018904,2]
[337798256,1726123847457,-500.0,0.00018904,2]
[337798257,1726123847467,-773.65,0.00018904,2]
[337798258,1726123847476,-1331.18,0.00018904,2]
[337798259,1726123847485,-1255.34,0.00018904,2]
[337798260,1726123847494,-531.79,0.00018904,2]
[337798261,1726123847504,-181.256569,0.00018904,2]
[337798262,1726123847514,-181.256569,0.00018904,2]
[337798263,1726123847523,-636.83,0.00018904,2]
[337798264,1726123847532,-500.0,0.00018904,2]
[337798265,1726123847542,-500.0,0.00018904,2]
[337798266,1726123847551,-865.46,0.00018904,2]
[337798267,1726123847560,-725.62,0.00018904,2]
[337798268,1726123847570,-500.0,0.00018904,2]
[337798269,1726123847579,-605.23,0.00018904,2]
[337798270,1726123847589,-500.0,0.00018904,2]
[337798271,1726123847598,-988.25,0.00018904,2]
[337798272,1726123847607,-151.0,0.00018904,2]
[337798273,1726123847616,-500.0,0.00018904,2]
[337798274,1726123847626,-500.0,0.00018904,2]
[337798275,1726123847636,-500.0,0.00018904,2]
[337798276,1726123847645,-500.0,0.00018904,2]
[337798277,1726123847654,-277.68832173,0.00018904,2]
[337798278,1726123847665,-818.89,0.00018904,2]
[337798279,1726123847674,-151.0,0.00018904,2]
[337798280,1726123847686,-1126.63,0.00018904,2]
[337798281,1726123847697,-500.0,0.00018904,2]
[337798282,1726123847707,-500.0,0.00018904,2]
[337798283,1726123847716,-977.81,0.00018904,2]
[337798284,1726123847726,-500.0,0.00018904,2]
[337798285,1726123847739,-500.0,0.00018904,2]
[337798286,1726123847750,-500.0,0.00018904,2]
[337798287,1726123847760,-1576.0,0.00018904,2]
[337798288,1726123847770,-563.69,0.00018904,2]
[337798289,1726123847786,-500.0,0.00018904,2]
[337798290,1726123847795,-500.0,0.00018904,2]
[337798291,1726123847804,-752.1,0.00018904,2]
[337798292,1726123847813,-500.0,0.00018904,2]
[337798293,1726123847823,-500.0,0.00018904,2]
[337798294,1726123847832,-500.0,0.00018904,2]
[337798295,1726123847842,-500.0,0.00018904,2]
[337798296,1726123847851,-500.0,0.00018904,2]
[337798297,1726123847861,-895.59,0.00018904,2]
[337798298,1726123847870,-691.07,0.00018904,2]
[337798299,1726123847879,-427.37751221,0.00018904,2]
[337798300,1726123847888,-500.0,0.00018904,2]
[337798301,1726123847897,-500.0,0.00018904,2]
[337798302,1726123847907,-786.8,0.00018904,2]
[337798303,1726123847916,-975.76,0.00018904,2]
[337798304,1726123847925,-500.0,0.00018904,2]
[337798305,1726123847935,-500.0,0.00018904,2]
[337798306,1726123847944,-806.09,0.00018904,2]
[337798307,1726123847953,-729.84,0.00018904,2]
[337798308,1726123847962,-770.21,0.00018904,2]
[337798309,1726123847971,-500.0,0.00018904,2]
[337798310,1726123847980,-8674.94,0.00018904,2]
[337798311,1726123847990,-848.3,0.00018904,2]
[337798312,1726123847999,-500.0,0.00018904,2]
[337798313,1726123848009,-500.0,0.00018904,2]
[337798314,1726123848019,-500.0,0.00018904,2]
[337798315,1726123848028,-866.1,0.00018904,2]
[337798316,1726123848038,-689.98,0.00018904,2]
[337798317,1726123848049,-631.72,0.00018904,2]
[337798318,1726123848058,-500.0,0.00018904,2]
[337798319,1726123848069,-582.27,0.00018904,2]
[337798320,1726123848078,-560.54,0.00018904,2]
[337798321,1726123848087,-500.0,0.00018904,2]
[337798322,1726123848096,-1022.59,0.00018904,2]
[337798323,1726123848105,-10023.64,0.00018904,2]
[337798324,1726123848115,-1077.78,0.00018904,2]
[337798325,1726123848125,-500.0,0.00018904,2]
[337798326,1726123848134,-923.85,0.00018904,2]
[337798327,1726123848144,-573.18,0.00018904,2]
[337798328,1726123848155,-8715.78,0.00018904,2]
[337798329,1726123848164,-602.78,0.00018904,2]
[337798330,1726123848174,-500.0,0.00018904,2]
[337798331,1726123848184,-1098.43,0.00018904,2]
[337798332,1726123848193,-500.0,0.00018904,2]
[337798333,1726123848203,-2064.53816,0.00018904,2]
[337798334,1726123848213,-11078.48,0.00018904,2]
[337798335,1726123848223,-545.11,0.00018904,2]
[337798336,1726123848233,-764.18,0.00018904,2]
[337798337,1726123848242,-922.67,0.00018904,2]
[337798338,1726123848253,-2064.53816,0.00018904,2]
[337798339,1726123848263,-500.0,0.00018904,2]
[337798340,1726123848278,-212.21825186,0.00018904,2]
[337798341,1726123848288,-500.0,0.00018904,2]
[337798342,1726123848297,-4848.47,0.00018904,2]
[337798343,1726123848307,-879.2,0.00018904,2]
[337798344,1726123848316,-218.409079,0.00018904,2]
[337798345,1726123848326,-500.0,0.00018904,2]
[337798346,1726123848335,-613.74,0.00018904,2]
[337798347,1726123848344,-218.409079,0.00018904,2]
[337798348,1726123848353,-500.0,0.00018904,2]
[337798349,1726123848363,-151.0,0.00018904,2]
[337798350,1726123848373,-500.0,0.00018904,2]
[337798351,1726123848383,-877.77,0.00018904,2]
[337798352,1726123848393,-500.0,0.00018904,2]
[337798353,1726123848402,-561.4,0.00018904,2]
[337798354,1726123848411,-602.7,0.00018904,2]
[337798355,1726123848420,-515.82,0.00018904,2]
[337798356,1726123848430,-262.0284128,0.00018921,2]
[337798357,1726123848439,-1346.09283092,0.00018956,2]
[337798358,1726123848449,-151.0,0.00019178,2]
[337798359,1726123848458,-534.8,0.00019178,2]
[337798360,1726123848468,-500.0,0.00019178,2]
[337798361,1726123848477,-909.14,0.00019178,2]
[337798362,1726123848487,-637.82,0.00019178,2]
[337798363,1726123848496,-399.34642066,0.00019178,2]
[337798364,1726123848506,-500.0,0.00019178,2]
[337798365,1726123848515,-1548.21,0.00019178,2]
[337798366,1726123848524,-151.0,0.00019178,2]
[337798367,1726123848534,-960.5,0.00019178,2]
[337798368,1726123848543,-608.64,0.00019178,2]
[337798369,1726123848553,-500.0,0.00019178,2]
[337798370,1726123848562,-500.0,0.00019178,2]
[337798371,1726123848571,-688.31,0.00019178,2]
[337798372,1726123848581,-500.0,0.00019178,2]
[337798373,1726123848590,-500.0,0.00019178,2]
[337798374,1726123848599,-843.58,0.00019178,2]
[337798375,1726123848608,-339.79728114,0.00019178,2]
[337798376,1726123848618,-500.0,0.00019178,2]
[337798377,1726123848628,-500.0,0.00019178,2]
[337798378,1726123848638,-500.0,0.00019178,2]
[337798379,1726123848647,-500.0,0.00019178,2]
[337798380,1726123848657,-500.0,0.00019178,2]
[337798381,1726123848666,-506.79,0.00019178,2]
[337798382,1726123848675,-500.0,0.00019178,2]
[337798383,1726123848685,-500.0,0.00019178,2]
[337798384,1726123848694,-500.0,0.00019178,2]
[337798385,1726123848704,-705.14,0.00019178,2]
[337798386,1726123848713,-761.85,0.00019178,2]
[337798387,1726123848722,-844.39,0.00019178,2]
[337798388,1726123848732,-1153.8,0.00019178,2]
[337798389,1726123848743,-1280.53,0.00019178,2]
[337798390,1726123848752,-563.5,0.00019178,2]
[337798391,1726123848761,-1201.71,0.00019178,2]
[337798392,1726123848771,-509.77,0.00019178,2]
[337798393,1726123848781,-500.0,0.00019178,2]
[337798394,1726123848791,-659.94,0.00019178,2]
[337798395,1726123848800,-500.0,0.00019178,2]
[337798396,1726123848810,-500.0,0.00019178,2]
[337798397,1726123848820,-500.0,0.00019178,2]
[337798398,1726123848829,-500.0,0.00019178,2]
[337798399,1726123848839,-500.0,0.00019178,2]
[337798400,1726123848848,-563.24,0.00019178,2]
[337798401,1726123848858,-1009.51,0.00019178,2]
[337798402,1726123848867,-1316.2,0.00019178,2]
[337798403,1726123848877,-1002.22,0.00019178,2]
[337798404,1726123848886,-1498.5,0.00019178,2]
[337798405,1726123848895,-500.0,0.00019178,2]
[337798406,1726123848905,-694.31,0.00019178,2]
[337798407,1726123848915,-1214.16,0.00019178,2]
[337798408,1726123848924,-557.62,0.00019178,2]
[337798409,1726123848934,-540.42,0.00019178,2]
[337798410,1726123848944,-1797.38,0.00019178,2]
[337798411,1726123848953,-500.0,0.00019178,2]
[337798412,1726123848963,-773.65,0.00019178,2]
[337798413,1726123848973,-1331.18,0.00019178,2]
[337798414,1726123848983,-1255.34,0.00019178,2]
[337798415,1726123848995,-531.79,0.00019178,2]
[337798416,1726123849005,-636.83,0.00019178,2]
[337798417,1726123849014,-500.0,0.00019178,2]
[337798418,1726123849025,-500.0,0.00019178,2]
[337798419,1726123849035,-865.46,0.00019178,2]
[337798420,1726123849045,-725.62,0.00019178,2]
[337798421,1726123849054,-500.0,0.00019178,2]
[337798422,1726123849064,-605.23,0.00019178,2]
[337798423,1726123849074,-500.0,0.00019178,2]
[337798424,1726123849083,-151.0,0.00019178,2]
[337798425,1726123849092,-2000.0,0.00019178,2]
[337798426,1726123849102,-2000.0,0.00019178,2]
[337798427,1726123849111,-988.25,0.00019178,2]
[337798428,1726123849122,-2000.0,0.00019178,2]
[337798429,1726123849132,-2000.0,0.00019178,2]
[337798430,1726123849142,-1114.63979819,0.00019178,2]
[337798431,1726123849152,-500.0,0.00019178,2]
[337798432,1726123849161,-500.0,0.00019178,2]
[337798433,1726123849170,-500.0,0.00019178,2]
[337798434,1726123849180,-525.23746437,0.00019178,2]
[337798435,1726123849190,-818.89,0.00019178,2]
[337798436,1726123849199,-151.0,0.00019178,2]
[337798437,1726123849209,-1126.63,0.00019178,2]
[337798438,1726123849218,-500.0,0.00019178,2]
[337798439,1726123849228,-500.0,0.00019178,2]
[337798440,1726123849238,-977.81,0.00019178,2]
[337798441,1726123849249,-500.0,0.00019178,2]
[337798442,1726123849258,-500.0,0.00019178,2]
[337798443,1726123849269,-500.0,0.00019178,2]
[337798444,1726123849278,-1576.0,0.00019178,2]
[337798445,1726123849288,-563.69,0.00019178,2]
[337798446,1726123849298,-500.0,0.00019178,2]
[337798447,1726123849307,-536.87152818,0.00019178,2]
[337798448,1726123849318,-752.1,0.00019178,2]
[337798449,1726123849327,-500.0,0.00019178,2]
[337798450,1726123849336,-151.0,0.00019178,2]
[337798451,1726123849346,-500.0,0.00019178,2]
[337798452,1726123849356,-151.0,0.00019178,2]
[337798453,1726123849366,-500.0,0.00019178,2]
[337798454,1726123849375,-500.0,0.00019178,2]
[337798455,1726123849385,-500.0,0.00019178,2]
[337798456,1726123849395,-895.59,0.00019178,2]
[337798457,1726123849404,-500.0,0.00019178,2]
[337798458,1726123849414,-691.07,0.00019178,2]
[337798459,1726123849424,-786.8,0.00019178,2]
[337798460,1726123849434,-500.0,0.00019178,2]
[337798461,1726123849443,-975.76,0.00019178,2]
[337798462,1726123849453,-500.0,0.00019178,2]
[337798463,1726123849463,-500.0,0.00019178,2]
[337798464,1726123849472,-806.09,0.00019178,2]
[337798465,1726123849482,-423.09098,0.00019178,2]
[337798466,1726123849491,-729.84,0.00019178,2]
[337798467,1726123849500,-770.21,0.00019178,2]
[337798468,1726123849510,-500.0,0.00019178,2]
[337798469,1726123849521,-8674.94,0.00019178,2]
[337798470,1726123849530,-848.3,0.00019178,2]
[337798471,1726123849540,-423.09098,0.00019178,2]
[337798472,1726123849550,-500.0,0.00019178,2]
[337798473,1726123849560,-341.78156665,0.00019178,2]
[337798474,1726123849570,-500.0,0.00019178,2]
[337798475,1726123849580,-866.1,0.00019178,2]
[337798476,1726123849589,-689.98,0.00019178,2]
[337798477,1726123849599,-276.254388,0.00019178,2]
[337798478,1726123849608,-631.72,0.00019178,2]
[337798479,1726123849618,-151.0,0.00019178,2]
[337798480,1726123849627,-500.0,0.00019178,2]
[337798481,1726123849637,-276.254388,0.00019178,2]
[337798482,1726123849647,-582.27,0.00019178,2]
[337798483,1726123849657,-560.54,0.00019178,2]
[337798484,1726123849667,-500.0,0.00019178,2]
[337798485,1726123849677,-151.0,0.00019178,2]
[337798486,1726123849687,-1022.59,0.00019178,2]
[337798487,1726123849697,-10023.64,0.00019178,2]
[337798488,1726123849706,-1077.78,0.00019178,2]
[337798489,1726123849716,-500.0,0.00019178,2]
[337798490,1726123849725,-923.85,0.00019178,2]
[337798491,1726123849735,-573.18,0.00019178,2]
[337798492,1726123849746,-151.0,0.00019178,2]
[337798493,1726123849756,-8715.78,0.00019178,2]
[337798494,1726123849768,-602.78,0.00019178,2]
[337798495,1726123849777,-500.0,0.00019178,2]
[337798496,1726123849787,-1098.43,0.00019178,2]
[337798497,1726123849797,-500.0,0.00019178,2]
[337798498,1726123849807,-11078.48,0.00019178,2]
[337798499,1726123849817,-545.11,0.00019178,2]
[337798500,1726123849827,-764.18,0.00019178,2]
[337798501,1726123849837,-922.67,0.00019178,2]
[337798502,1726123849846,-500.0,0.00019178,2]
[337798503,1726123849856,-1502.966318,0.00019178,2]
[337798504,1726123849865,-1502.966318,0.00019178,2]
[337798505,1726123849874,-500.0,0.00019178,2]
[337798506,1726123849884,-4848.47,0.00019178,2]
[337798507,1726123849894,-879.2,0.00019178,2]
[337798508,1726123849904,-500.0,0.00019178,2]
[337798509,1726123849914,-613.74,0.00019178,2]
[337798510,1726123849923,-335.499392,0.00019178,2]
[337798511,1726123849933,-500.0,0.00019178,2]
[337798512,1726123849943,-335.499392,0.00019178,2]
[337798513,1726123849952,-500.0,0.00019178,2]
[337798514,1726123849962,-500.0,0.00019178,2]
[337798515,1726123849972,-877.77,0.00019178,2]
[337798516,1726123849981,-561.4,0.00019178,2]
[337798517,1726123849992,-602.7,0.00019178,2]
[337798518,1726123850001,-515.82,0.00019178,2]
[337798519,1726123850011,-172.897475,0.00019178,2]
[337798520,1726123850021,-172.812373,0.00019178,2]
[337798521,1726123850032,-151.0,0.00019178,2]
[337798522,1726123850041,-161.769517,0.00019178,2]
[337798523,1726123850051,-167.0141561,0.00019178,2]
[337798524,1726123850060,-6305.130852,0.00019178,2]
[337798525,1726123850071,-174.125562,0.00019178,2]
[337798526,1726123850081,-375.756997,0.00019178,2]
[337798527,1726123850090,-375.756997,0.00019178,2]
[337798528,1726123850100,-375.756997,0.00019178,2]
[337798529,1726123850109,-375.756997,0.00019178,2]
[337798530,1726123850118,-375.756997,0.00019178,2]
[337798531,1726123850127,-375.756997,0.00019178,2]
[337798532,1726123850136,-10513.8325358,0.00019178,2]
[337798533,1726123850146,-151.0,0.00019452,2]
[337798534,1726123850155,-151.0,0.00019452,2]
[337798535,1726123850164,-534.8,0.00019452,2]
[337798536,1726123850173,-500.0,0.00019452,2]
[337798537,1726123850183,-909.14,0.00019452,2]
[337798538,1726123850191,-637.82,0.00019452,2]
[337798539,1726123850201,-500.0,0.00019452,2]
[337798540,1726123850210,-1548.21,0.00019452,2]
[337798541,1726123850219,-960.5,0.00019452,2]
[337798542,1726123850229,-608.64,0.00019452,2]
[337798543,1726123850240,-500.0,0.00019452,2]
[337798544,1726123850250,-559.24127759,0.00019452,2]
[337798545,1726123850261,-688.31,0.00019452,2]
[337798546,1726123850272,-500.0,0.00019452,2]
[337798547,1726123850282,-500.0,0.00019452,2]
[337798548,1726123850293,-843.58,0.00019452,2]
[337798549,1726123850304,-500.0,0.00019452,2]
[337798550,1726123850315,-315.8142228,0.00019452,2]
[337798551,1726123850325,-500.0,0.00019452,2]
[337798552,1726123850336,-500.0,0.00019452,2]
[337798553,1726123850346,-500.0,0.00019452,2]
[337798554,1726123850356,-506.79,0.00019452,2]
[337798555,1726123850365,-500.0,0.00019452,2]
[337798556,1726123850374,-500.0,0.00019452,2]
[337798557,1726123850383,-500.0,0.00019452,2]
[337798558,1726123850393,-705.14,0.00019452,2]
[337798559,1726123850402,-761.85,0.00019452,2]
[337798560,1726123850413,-844.39,0.00019452,2]
[337798561,1726123850424,-1153.8,0.00019452,2]
[337798562,1726123850433,-1280.53,0.00019452,2]
[337798563,1726123850443,-563.5,0.00019452,2]
[337798564,1726123850452,-651.504644,0.00019452,2]
[337798565,1726123850461,-1201.71,0.00019452,2]
[337798566,1726123850471,-651.504644,0.00019452,2]
[337798567,1726123850480,-509.77,0.00019452,2]
[337798568,1726123850490,-500.0,0.00019452,2]
[337798569,1726123850500,-659.94,0.00019452,2]
[337798570,1726123850509,-500.0,0.00019452,2]
[337798571,1726123850518,-500.0,0.00019452,2]
[337798572,1726123850528,-151.0,0.00019452,2]
[337798573,1726123850537,-500.0,0.00019452,2]
[337798574,1726123850547,-151.0,0.00019452,2]
[337798575,1726123850556,-500.0,0.00019452,2]
[337798576,1726123850565,-500.0,0.00019452,2]
[337798577,1726123850574,-563.24,0.00019452,2]
[337798578,1726123850583,-1009.51,0.00019452,2]
[337798579,1726123850593,-151.0,0.00019452,2]
[337798580,1726123850602,-1316.2,0.00019452,2]
[337798581,1726123850612,-1002.22,0.00019452,2]
[337798582,1726123850621,-1498.5,0.00019452,2]
[337798583,1726123850630,-500.0,0.00019452,2]
[337798584,1726123850639,-694.31,0.00019452,2]
[337798585,1726123850649,-1214.16,0.00019452,2]
[337798586,1726123850658,-557.62,0.00019452,2]
[337798587,1726123850667,-540.42,0.00019452,2]
[337798588,1726123850677,-151.0,0.00019452,2]
[337798589,1726123850686,-1797.38,0.00019452,2]
[337798590,1726123850695,-500.0,0.00019452,2]
[337798591,1726123850705,-773.65,0.00019452,2]
[337798592,1726123850714,-1331.18,0.00019452,2]
[337798593,1726123850724,-1255.34,0.00019452,2]
[337798594,1726123850734,-531.79,0.00019452,2]
[337798595,1726123850743,-181.256569,0.00019452,2]
[337798596,1726123850753,-181.256569,0.00019452,2]
[337798597,1726123850763,-636.83,0.00019452,2]
[337798598,1726123850773,-586.08935318,0.00019452,2]
[337798599,1726123850783,-500.0,0.00019452,2]
[337798600,1726123850792,-865.46,0.00019452,2]
[337798601,1726123850801,-725.62,0.00019452,2]
[337798602,1726123850810,-500.0,0.00019452,2]
[337798603,1726123850820,-605.23,0.00019452,2]
[337798604,1726123850829,-500.0,0.00019452,2]
[337798605,1726123850838,-988.25,0.00019452,2]
[337798606,1726123850848,-151.0,0.00019452,2]
[337798607,1726123850858,-387.86497267,0.00019452,2]
[337798608,1726123850867,-500.0,0.00019452,2]
[337798609,1726123850877,-500.0,0.00019452,2]
[337798610,1726123850887,-818.89,0.00019452,2]
[337798611,1726123850896,-151.0,0.00019452,2]
[337798612,1726123850906,-1126.63,0.00019452,2]
[337798613,1726123850916,-500.0,0.00019452,2]
[337798614,1726123850925,-500.0,0.00019452,2]
[337798615,1726123850935,-977.81,0.00019452,2]
[337798616,1726123850945,-500.0,0.00019452,2]
[337798617,1726123850955,-500.0,0.00019452,2]
[337798618,1726123850964,-500.0,0.00019452,2]
[337798619,1726123850973,-1576.0,0.00019452,2]
[337798620,1726123850983,-563.69,0.00019452,2]
[337798621,1726123850995,-500.0,0.00019452,2]
[337798622,1726123851005,-752.1,0.00019452,2]
[337798623,1726123851015,-500.0,0.00019452,2]
[337798624,1726123851025,-500.0,0.00019452,2]
[337798625,1726123851036,-500.0,0.00019452,2]
[337798626,1726123851046,-500.0,0.00019452,2]
[337798627,1726123851225,-500.0,0.00019452,2]
[337798628,1726123851235,-895.59,0.00019452,2]
[337798629,1726123851244,-500.0,0.00019452,2]
[337798630,1726123851254,-691.07,0.00019452,2]
[337798631,1726123851264,-786.8,0.00019452,2]
[337798632,1726123851279,-527.00813559,0.00019452,2]
[337798633,1726123851293,-975.76,0.00019452,2]
[337798634,1726123851302,-500.0,0.00019452,2]
[337798635,1726123851312,-500.0,0.00019452,2]
[337798636,1726123851322,-806.09,0.00019452,2]
[337798637,1726123851331,-729.84,0.00019452,2]
[337798638,1726123851341,-770.21,0.00019452,2]
[337798639,1726123851350,-500.0,0.00019452,2]
[337798640,1726123851360,-8674.94,0.00019452,2]
[337798641,1726123851370,-848.3,0.00019452,2]
[337798642,1726123851379,-500.0,0.00019452,2]
[337798643,1726123851390,-500.0,0.00019452,2]
[337798644,1726123851399,-866.1,0.00019452,2]
[337798645,1726123851409,-689.98,0.00019452,2]
[337798646,1726123851419,-631.72,0.00019452,2]
[337798647,1726123851430,-500.0,0.00019452,2]
[337798648,1726123851440,-582.27,0.00019452,2]
[337798649,1726123851450,-560.54,0.00019452,2]
[337798650,1726123851459,-500.0,0.00019452,2]
[337798651,1726123851470,-1022.59,0.00019452,2]
[337798652,1726123851481,-10023.64,0.00019452,2]
[337798653,1726123851493,-1077.78,0.00019452,2]
[337798654,1726123851504,-500.0,0.00019452,2]
[337798655,1726123851514,-923.85,0.00019452,2]
[337798656,1726123851528,-573.18,0.00019452,2]
[337798657,1726123851538,-8715.78,0.00019452,2]
[337798658,1726123851550,-602.78,0.00019452,2]
[337798659,1726123851561,-500.0,0.00019452,2]
[337798660,1726123851571,-1098.43,0.00019452,2]
[337798661,1726123851580,-500.0,0.00019452,2]
[337798662,1726123851590,-2064.53816,0.00019452,2]
[337798663,1726123851599,-11078.48,0.00019452,2]
[337798664,1726123851609,-545.11,0.00019452,2]
[337798665,1726123851620,-764.18,0.00019452,2]
[337798666,1726123851630,-922.67,0.00019452,2]
[337798667,1726123851640,-2064.53816,0.00019452,2]